bitfinex-derivatives/quotes_BTCF0:USTF0_20250910
["timestamp","ask_amount","ask_price","bid_price","bid_amount"]
[1757491671409,0.89331524,112680.0,112670.0,0.20462803]
[1757491672419,0.89331524,112680.0,112670.0,0.18313803]
[1757491672420,1.03380625,112680.0,112670.0,0.18313803]
[1757491672811,1.03380625,112680.0,112670.0,0.04264702]
[1757491673013,1.03380625,112680.0,112670.0,0.18313803]
[1757491673710,1.03380625,112680.0,112670.0,0.20462803]
[1757491674015,1.08259524,112680.0,112670.0,0.20462803]
[1757491676918,0.27351524,112680.0,112670.0,0.20462803]
[1757491677123,1.08259524,112680.0,112670.0,0.20462803]
[1757491678922,1.22308625,112680.0,112670.0,0.20462803]
[1757491681222,1.08259524,112680.0,112670.0,0.20462803]
[1757491681422,1.22308625,112680.0,112670.0,0.20462803]
[1757491683920,1.36357726,112680.0,112670.0,0.00883]
[1757491684127,1.41153046,112680.0,112670.0,0.00883]
[1757491684425,0.21195945,112680.0,112670.0,0.14932101]
[1757491684623,1.02099945,112680.0,112670.0,0.18426101]
[1757491684924,1.16149046,112680.0,112670.0,0.04428]
[1757491685124,1.11353726,112680.0,112670.0,0.04428]
[1757491685717,0.30449726,112680.0,112670.0,0.04428]
[1757491685911,1.36357726,112680.0,112670.0,0.04428]
[1757491686121,1.55202147,112680.0,112670.0,0.04415]
[1757491686324,1.55202147,112680.0,112670.0,0.03545]
[1757491686824,1.41153046,112680.0,112670.0,0.03545]
[1757491688721,1.55202147,112680.0,112670.0,0.03545]
[1757491689320,1.50406827,112680.0,112670.0,0.03545]
[1757491689519,1.60406827,112680.0,112670.0,0.03545]
[1757491689720,1.60406827,112680.0,112650.0,0.00013357]
[1757491689721,1.66805611,112680.0,112650.0,0.00013357]
[1757491689924,0.28098202,112660.0,112650.0,0.00013357]
[1757491690128,1.12100726,112660.0,112650.0,0.00013357]
[1757491690721,0.30328726,112660.0,112650.0,0.00013357]
[1757491691225,1.12088726,112660.0,112650.0,0.00013357]
[1757491691423,1.12188726,112660.0,112650.0,0.00013357]
[1757491691624,1.12192726,112660.0,112650.0,0.00013357]
[1757491692427,1.12292726,112660.0,112650.0,0.00013357]
[1757491694129,1.12248726,112660.0,112650.0,0.00013357]
[1757491699037,0.30527907,112660.0,112650.0,0.00013357]
[1757491699240,1.12195907,112660.0,112650.0,0.00013357]
[1757491699431,0.30527907,112660.0,112650.0,0.01381357]
[1757491699631,1.12187907,112660.0,112650.0,0.03580357]
[1757491699832,1.12187907,112660.0,112650.0,0.17629458]
[1757491700639,1.12187907,112660.0,112650.0,0.01381357]
[1757491702140,1.12163907,112660.0,112650.0,0.17629458]
[1757491702340,0.93434826,112660.0,112650.0,0.03580357]
[1757491702533,0.11798826,112660.0,112650.0,0.03580357]
[1757491702733,0.93430826,112660.0,112650.0,0.03580357]
[1757491703442,0.93430826,112660.0,112650.0,0.01381357]
[1757491703640,0.93422826,112660.0,112650.0,0.03580357]
[1757491704446,0.11798826,112660.0,112650.0,0.03580357]
[1757491704645,0.91106826,112660.0,112650.0,0.03580357]
[1757491705341,0.11798826,112660.0,112650.0,0.03580357]
[1757491705541,0.81645705,112660.0,112650.0,0.12949478]
[1757491705738,0.84033705,112660.0,112650.0,0.37949478]
[1757491706846,0.93402826,112660.0,112650.0,0.37949478]
[1757491707144,0.84029705,112660.0,112650.0,0.37949478]
[1757491707347,0.84013705,112660.0,112650.0,0.37949478]
[1757491710751,0.93382826,112660.0,112650.0,0.37949478]
[1757491711449,0.11798826,112660.0,112650.0,0.37949478]
[1757491711650,0.68482826,112660.0,112650.0,0.37949478]
[1757491711845,0.11798826,112660.0,112650.0,0.37949478]
[1757491712349,0.68438826,112660.0,112650.0,0.37949478]
[1757491712650,0.59069705,112660.0,112650.0,0.37949478]
[1757491714649,0.68438826,112660.0,112650.0,0.03580357]
[1757491714849,0.68438826,112660.0,112650.0,0.01381357]
[1757491715151,0.68438826,112660.0,112650.0,0.03580357]
[1757491716049,0.11798826,112660.0,112650.0,0.03580357]
[1757491716249,0.93266826,112660.0,112650.0,0.03580357]
[1757491716846,0.93266826,112660.0,112650.0,0.00013357]
[1757491717244,1.02635947,112660.0,112650.0,0.00013357]
[1757491717450,1.0741896,112660.0,112650.0,0.00013357]
[1757491718050,0.98049839,112660.0,112650.0,0.00013357]
[1757491718553,1.0741896,112660.0,112650.0,0.00013357]
[1757491718853,1.3241896,112660.0,112650.0,0.00013357]
[1757491719049,1.34034731,112660.0,112650.0,0.00013357]
[1757491719256,1.02635947,112660.0,112650.0,0.00013357]
[1757491721255,1.07428909,112660.0,112650.0,0.00013357]
[1757491724757,1.32428909,112660.0,112650.0,0.00013357]
[1757491725453,0.50960909,112660.0,112650.0,0.00013357]
[1757491725657,1.32396909,112660.0,112650.0,0.00013357]
[1757491735461,1.32304909,112660.0,112650.0,0.00013357]
[1757491736058,1.32300909,112660.0,112650.0,0.00013357]
[1757491736368,1.32296909,112660.0,112650.0,0.00013357]
[1757491736864,1.07284909,112660.0,112650.0,0.00013357]
[1757491738153,0.25960909,112660.0,112650.0,0.01351357]
[1757491738463,0.07222667,112660.0,112650.0,0.38045478]
[1757491738661,0.88538667,112660.0,112650.0,0.38045478]
[1757491738852,0.83745705,112660.0,112650.0,0.38045478]
[1757491740366,0.02429705,112660.0,112650.0,0.38045478]
[1757491740566,0.83733705,112660.0,112650.0,0.47414599]
[1757491741065,0.02429705,112660.0,112650.0,0.47414599]
[1757491741269,0.83725705,112660.0,112650.0,0.47414599]
[1757491741461,0.83625705,112660.0,112650.0,0.38045478]
[1757491742461,0.83525705,112660.0,112650.0,0.38045478]
[1757491742956,0.83525705,112660.0,112650.0,0.38145478]
[1757491743162,0.83525705,112660.0,112650.0,0.47614599]
[1757491744363,0.81296,112660.0,112650.0,0.47614599]
[1757491745062,0.0001,112670.0,112660.0,0.01338]
[1757491745267,0.83566734,112670.0,112660.0,0.22401242]
[1757491745477,0.81328,112670.0,112660.0,0.22401242]
[1757491745969,0.81328,112670.0,112660.0,0.56770363]
[1757491746362,0.81328,112670.0,112660.0,0.48271167]
[1757491746665,0.81328,112670.0,112660.0,0.57640288]
[1757491746875,0.81318,112680.0,112670.0,0.03663]
[1757491747167,0.81308,112680.0,112670.0,0.22401242]
[1757491747365,0.06979219,112690.0,112680.0,0.03663]
[1757491747567,0.53944842,112690.0,112680.0,0.22401242]
[1757491748370,0.51709219,112690.0,112680.0,0.22401242]
[1757491748571,0.53943498,112690.0,112680.0,0.23271242]
[1757491748784,0.4474,112690.0,112680.0,0.32640363]
[1757491749077,0.4474,112690.0,112680.0,0.23271242]
[1757491749367,0.4484,112690.0,112680.0,0.23271242]
[1757491749962,0.4494,112690.0,112680.0,0.23271242]
[1757491752571,0.4494,112690.0,112680.0,0.57640363]
[1757491752769,0.4494,112690.0,112680.0,0.48271242]
[1757491753270,0.4494,112690.0,112680.0,0.57640363]
[1757491753662,0.002,112690.0,112680.0,0.66514563]
[1757491753970,0.0001,112700.0,112690.0,0.03605]
[1757491754170,0.2959,112710.0,112700.0,0.03605]
[1757491754472,0.2958,112710.0,112700.0,0.22343242]
[1757491754666,0.36797081,112710.0,112700.0,0.22343242]
[1757491754861,0.36797081,112710.0,112700.0,0.03605]
[1757491755065,0.36477081,112710.0,112700.0,0.22343242]
[1757491755461,0.0033,112720.0,112710.0,0.03605]
[1757491755672,0.0032,112720.0,112710.0,0.22343242]
[1757491755968,0.0032,112720.0,112710.0,0.12974121]
[1757491756158,0.82624288,112730.0,112720.0,0.01382]
[1757491756364,0.84840692,112730.0,112720.0,0.22343242]
[1757491756570,0.84840692,112730.0,112720.0,0.12974121]
[1757491756969,0.83954404,112730.0,112720.0,0.22343242]
[1757491757770,0.83954404,112730.0,112720.0,0.22543242]
[1757491758172,0.84826812,112730.0,112720.0,0.13174121]
[1757491758674,0.84826812,112730.0,112720.0,0.13274121]
[1757491758973,0.9196315,112730.0,112720.0,0.13274121]
[1757491759774,0.91090742,112730.0,112720.0,0.13274121]
[1757491759964,0.91984682,112730.0,112720.0,0.13274121]
[1757491760268,0.91090742,112730.0,112720.0,0.13274121]
[1757491763177,0.09682742,112730.0,112720.0,0.22643242]
[1757491763362,0.91058742,112730.0,112720.0,0.22643242]
[1757491764073,0.91058742,112730.0,112720.0,0.13274121]
[1757491764374,0.91058742,112730.0,112720.0,0.31971816]
[1757491765067,1.0509215,112730.0,112720.0,0.31971816]
[1757491765470,1.0509215,112730.0,112720.0,0.01682]
[1757491765774,1.0509215,112730.0,112720.0,0.17938408]
[1757491767972,1.0509215,112730.0,112720.0,0.31971816]
[1757491768172,1.0509215,112730.0,112720.0,0.03905]
[1757491768478,1.4891852,112730.0,112720.0,0.001]
[1757491769171,1.25620342,112730.0,112720.0,0.001]
[1757491769361,0.44148342,112730.0,112720.0,0.001]
[1757491769774,1.09948205,112730.0,112720.0,0.001]
[1757491771873,0.28484205,112730.0,112720.0,0.03705]
[1757491772173,1.09040205,112730.0,112720.0,0.01482]
[1757491772375,1.09040205,112730.0,112720.0,0.001]
[1757491772979,1.48073613,112730.0,112720.0,0.001]
[1757491773678,1.48073613,112730.0,112720.0,0.00969]
[1757491774275,1.43305558,112730.0,112720.0,0.00969]
[1757491775280,1.43304164,112730.0,112720.0,0.00969]
[1757491775876,1.30142756,112730.0,112720.0,0.00969]
[1757491776781,1.3654154,112730.0,112720.0,0.00969]
[1757491777177,0.69146948,112730.0,112720.0,0.00969]
[1757491777377,0.62748164,112730.0,112720.0,0.00969]
[1757491777570,1.30150756,112730.0,112720.0,0.00969]
[1757491778081,1.36527436,112730.0,112720.0,0.00969]
[1757491778269,1.36523436,112730.0,112720.0,0.00969]
[1757491779276,1.11523436,112730.0,112720.0,0.00969]
[1757491780180,0.97490028,112730.0,112720.0,0.02351]
[1757491780382,0.30091436,112730.0,112720.0,0.18607408]
[1757491780686,1.11503436,112730.0,112720.0,0.18607408]
[1757491780983,1.11499436,112730.0,112720.0,0.00969]
[1757491781980,0.30091436,112730.0,112720.0,0.00969]
[1757491782186,1.11499436,112730.0,112720.0,0.00969]
[1757491782985,0.30091436,112730.0,112720.0,0.15002408]
[1757491783186,1.11519436,112730.0,112720.0,0.00969]
[1757491783378,1.11519436,112730.0,112720.0,0.15002408]
[1757491784277,1.11503436,112730.0,112720.0,0.15002408]
[1757491784884,1.11503436,112730.0,112720.0,0.00969]
[1757491785086,1.11503436,112730.0,112720.0,0.15002408]
[1757491786087,1.11503436,112730.0,112720.0,0.00969]
[1757491789476,1.05126756,112730.0,112720.0,0.00969]
[1757491789980,1.11503436,112730.0,112720.0,0.00969]
[1757491790282,0.30091436,112730.0,112720.0,0.03296]
[1757491790486,0.09681348,112730.0,112720.0,0.18711408]
[1757491790688,1.05042756,112730.0,112720.0,0.32744816]
[1757491790886,1.09827831,112730.0,112720.0,0.18711408]
[1757491791086,1.09827831,112730.0,112720.0,0.04678]
[1757491791275,1.09827831,112730.0,112720.0,0.18711408]
[1757491791590,0.28499831,112730.0,112720.0,0.18711408]
[1757491791791,1.09823831,112730.0,112720.0,0.18711408]
[1757491792182,0.95790423,112730.0,112720.0,0.18711408]
[1757491792386,1.09823831,112730.0,112720.0,0.18711408]
[1757491792786,1.09823831,112730.0,112720.0,0.16384408]
[1757491793784,1.09823831,112730.0,112720.0,0.15002408]
[1757491795891,1.09823831,112730.0,112720.0,0.16384408]
[1757491796990,1.09823831,112730.0,112720.0,0.02351]
[1757491797193,1.09823831,112730.0,112720.0,0.16384408]
[1757491797393,1.09823831,112730.0,112720.0,0.02351]
[1757491797695,1.09823831,112730.0,112720.0,0.18711408]
[1757491799294,1.05038756,112730.0,112720.0,0.18711408]
[1757491799996,1.05038756,112730.0,112720.0,0.16384408]
[1757491801594,1.04946756,112730.0,112720.0,0.16384408]
[1757491801799,1.04946756,112730.0,112720.0,0.18711408]
[1757491803097,0.23714756,112730.0,112720.0,0.18711408]
[1757491803498,1.04914756,112730.0,112720.0,0.18711408]
[1757491803810,0.23714756,112730.0,112720.0,0.18711408]
[1757491804011,1.04918756,112730.0,112720.0,0.18711408]
[1757491804608,0.23714756,112730.0,112720.0,0.18711408]
[1757491804811,1.04918756,112730.0,112720.0,0.18711408]
[1757491806513,0.23714756,112730.0,112720.0,0.18711408]
[1757491806717,1.04890756,112730.0,112720.0,0.18711408]
[1757491807616,0.23714756,112730.0,112720.0,0.18711408]
[1757491807910,1.04886756,112730.0,112720.0,0.18711408]
[1757491809213,0.90853348,112730.0,112720.0,0.18711408]
[1757491809615,1.04886756,112730.0,112720.0,0.18711408]
[1757491819523,0.90853348,112730.0,112720.0,0.18711408]
[1757491819711,1.04886756,112730.0,112720.0,0.18711408]
[1757491822821,1.09671831,112730.0,112720.0,0.18711408]
[1757491823010,1.09671831,112730.0,112720.0,0.04678]
[1757491823217,1.09671831,112730.0,112720.0,0.18711408]
[1757491824420,1.04995639,112730.0,112720.0,0.14035216]
[1757491827722,1.04995639,112730.0,112720.0,0.04678]
[1757491827927,1.04995639,112730.0,112720.0,0.14035216]
[1757491829631,1.04995639,112730.0,112720.0,0.04678]
[1757491829819,1.04995639,112730.0,112720.0,0.14035216]
[1757491830026,0.23823639,112730.0,112720.0,0.14035216]
[1757491830328,0.95698423,112730.0,112720.0,0.14035216]
[1757491830523,0.14466423,112730.0,112720.0,0.23392432]
[1757491830828,0.90909348,112730.0,112720.0,0.48392432]
[1757491831029,0.0222501,112730.0,112720.0,0.57749648]
[1757491831227,0.0001,112740.0,112730.0,0.03533]
[1757491831527,0.12738,112750.0,112740.0,0.03533]
[1757491831727,0.12728,112750.0,112740.0,0.22247432]
[1757491832120,0.0001,112760.0,112740.0,0.22247432]
[1757491832324,0.34058,112760.0,112750.0,0.22247432]
[1757491832521,0.34048,112760.0,112750.0,0.13759216]
[1757491832731,0.41117884,112760.0,112750.0,0.13759216]
[1757491833030,0.07069884,112760.0,112750.0,0.23116432]
[1757491833219,0.48828,112760.0,112750.0,0.23116432]
[1757491833421,0.0001,112770.0,112760.0,0.03533]
[1757491833616,1.93138291,112790.0,112770.0,0.01273]
[1757491833617,0.0001,112780.0,112770.0,0.01273]
[1757491833927,0.82146053,112780.0,112770.0,0.12890216]
[1757491834436,0.82134053,112780.0,112770.0,0.12890216]
[1757491835231,0.82234053,112780.0,112770.0,0.12890216]
[1757491836829,0.89289207,112780.0,112770.0,0.12890216]
[1757491841631,0.89289207,112780.0,112770.0,0.03533]
[1757491841928,0.89289207,112780.0,112770.0,0.12890216]
[1757491842935,0.08037207,112780.0,112770.0,0.12890216]
[1757491843136,0.91417367,112780.0,112770.0,0.12890216]
[1757491843827,1.00774583,112780.0,112770.0,0.12890216]
[1757491844334,0.91417367,112780.0,112770.0,0.12890216]
[1757491845635,0.91417367,112780.0,112770.0,0.03533]
[1757491845832,0.91417367,112780.0,112770.0,0.12890216]
[1757491846031,1.00730583,112780.0,112770.0,0.12890216]
[1757491847236,0.91373367,112780.0,112770.0,0.12890216]
[1757491849839,1.00730583,112780.0,112770.0,0.12890216]
[1757491850431,1.00730583,112780.0,112770.0,0.01273]
[1757491850732,1.16317367,112780.0,112770.0,0.12845216]
[1757491850937,0.91317367,112780.0,112770.0,0.12845216]
[1757491852329,0.91317367,112780.0,112770.0,0.03488]
[1757491852531,0.91317367,112780.0,112770.0,0.12845216]
[1757491854244,0.91289367,112780.0,112770.0,0.12845216]
[1757491855841,0.91289367,112780.0,112770.0,0.13714216]
[1757491857342,0.10239665,112780.0,112770.0,0.13714216]
[1757491857540,0.91287665,112780.0,112770.0,0.04357]
[1757491857740,0.09357612,112780.0,112770.0,0.23071432]
[1757491857943,0.90405612,112780.0,112770.0,0.13714216]
[1757491858838,0.91295439,112780.0,112770.0,0.13714216]
[1757491859341,0.09357612,112780.0,112770.0,0.13714216]
[1757491859540,0.90405612,112780.0,112770.0,0.13714216]
[1757491860842,0.09357612,112780.0,112770.0,0.13714216]
[1757491861042,0.90401612,112780.0,112770.0,0.13714216]
[1757491862046,0.91279467,112780.0,112770.0,0.13714216]
[1757491863352,0.90401612,112780.0,112770.0,0.13714216]
[1757491864247,0.90701612,112780.0,112770.0,0.13714216]
[1757491864451,0.91401612,112780.0,112770.0,0.13814216]
[1757491865453,0.96186687,112780.0,112770.0,0.13814216]
[1757491868350,0.15142687,112780.0,112770.0,0.13814216]
[1757491868552,0.96182687,112780.0,112770.0,0.23171432]
[1757491868743,0.96182687,112780.0,112770.0,0.13814216]
[1757491872750,0.91397612,112780.0,112770.0,0.13814216]
[1757491878353,0.91389612,112780.0,112770.0,0.13814216]
[1757491886470,0.91389612,112780.0,112770.0,0.18478227]
[1757491887669,0.91389612,112780.0,112770.0,0.32499454]
[1757491888259,0.91389612,112780.0,112770.0,0.18478227]
[1757491894668,1.44432066,112780.0,112770.0,0.00969]
[1757491894873,1.63226368,112780.0,112770.0,0.00969]
[1757491895071,1.44420066,112780.0,112770.0,0.00969]
[1757491895371,0.6818891,112780.0,112770.0,0.001]
[1757491895571,1.4920891,112780.0,112770.0,0.001]
[1757491895973,0.6818891,112780.0,112770.0,0.001]
[1757491896275,1.44416066,112780.0,112770.0,0.001]
[1757491896865,0.38400066,112780.0,112770.0,0.14121227]
[1757491897072,1.10185754,112780.0,112770.0,0.001]
[1757491897273,1.24206981,112780.0,112770.0,0.14121227]
[1757491897874,0.43186981,112780.0,112770.0,0.14121227]
[1757491898077,1.24206981,112780.0,112770.0,0.14121227]
[1757491898278,0.43186981,112780.0,112770.0,0.14121227]
[1757491898471,1.24206981,112780.0,112770.0,0.14121227]
[1757491899677,1.10185754,112780.0,112770.0,0.17720227]
[1757491900376,0.15144527,112780.0,112770.0,0.17720227]
[1757491900780,0.96164527,112780.0,112770.0,0.17720227]
[1757491901377,0.96164527,112780.0,112770.0,0.03699]
[1757491901577,0.96164527,112780.0,112770.0,0.17720227]
[1757491901778,0.15144527,112780.0,112770.0,0.17720227]
[1757491901977,0.96164527,112780.0,112770.0,0.17720227]
[1757491902280,0.91377612,112780.0,112770.0,0.17720227]
[1757491912275,0.91377612,112780.0,112770.0,0.18589227]
[1757491913384,0.91377612,112780.0,112770.0,0.04568]
[1757491913983,0.91377612,112780.0,112770.0,0.18589227]
[1757491914779,0.91377612,112780.0,112770.0,0.32610454]
[1757491915177,0.91377612,112780.0,112770.0,0.04568]
[1757491915378,0.10357612,112780.0,112770.0,0.32610454]
[1757491915582,0.91361612,112780.0,112770.0,0.32610454]
[1757491916786,0.91361612,112780.0,112770.0,0.04568]
[1757491916985,0.91361612,112780.0,112770.0,0.32610454]
[1757491919183,0.10357612,112780.0,112770.0,0.32610454]
[1757491919483,0.10357612,112780.0,112770.0,0.57610454]
[1757491919695,0.91353612,112780.0,112770.0,0.57610454]
[1757491919877,0.03302458,112780.0,112770.0,0.80498931]
[1757491920083,0.18804951,112820.0,112810.0,0.03532]
[1757491920286,2.03513913,112830.0,112820.0,0.03532]
[1757491920287,1.92405722,112830.0,112820.0,0.03532]
[1757491920591,2.87422949,112830.0,112820.0,0.14021227]
[1757491920787,2.87422949,112830.0,112810.0,0.01387296]
[1757491921090,0.14021227,112840.0,112830.0,0.03532]
[1757491921290,1.01976486,112840.0,112830.0,0.15385227]
[1757491921491,0.06959259,112840.0,112830.0,0.31574454]
[1757491921683,0.06628,112840.0,112830.0,0.31574454]
[1757491922086,1.92933227,112880.0,112860.0,0.01364]
[1757491922087,0.14021227,112880.0,112860.0,0.01364]
[1757491922291,0.00888012,112890.0,112880.0,0.01364]
[1757491922587,0.09993546,112900.0,112880.0,0.01364]
[1757491922588,0.02758148,112900.0,112890.0,0.03532]
[1757491922788,0.1035,112940.0,112910.0,0.03532]
[1757491922789,0.06988418,112930.0,112910.0,0.03532]
[1757491922990,0.24361227,112940.0,112920.0,0.29406454]
[1757491923180,0.24361227,112940.0,112930.0,0.14021227]
[1757491923181,0.2034,112940.0,112930.0,0.14021227]
[1757491923491,0.2034,112940.0,112880.0,0.03532]
[1757491923492,0.35,112930.0,112880.0,0.03532]
[1757491923690,0.53277227,112920.0,112900.0,0.14021227]
[1757491923888,0.14021227,112910.0,112890.0,0.00013296]
[1757491924086,1.10442454,112900.0,112890.0,0.00013296]
[1757491924285,1.34463681,112900.0,112860.0,0.14321227]
[1757491924586,0.14021227,112880.0,112870.0,0.14021227]
[1757491924785,0.96429227,112880.0,112870.0,0.14031227]
[1757491924984,0.96429227,112880.0,112870.0,0.17563227]
[1757491924985,0.82408,112880.0,112870.0,0.17563227]
[1757491925185,0.82408,112880.0,112870.0,0.3160775]
[1757491925486,0.82408,112880.0,112870.0,0.5660775]
[1757491925686,0.14021227,112910.0,112870.0,0.5660775]
[1757491925884,0.002,112900.0,112890.0,0.03532]
[1757491926084,0.0019,112900.0,112890.0,0.03555296]
[1757491926277,0.0019,112900.0,112890.0,0.28555296]
[1757491926690,0.38096,112910.0,112900.0,0.01364]
[1757491926991,1.78884,112930.0,112900.0,0.01364]
[1757491926992,0.14021227,112920.0,112900.0,0.3159775]
[1757491927192,0.14021227,112920.0,112910.0,0.17553227]
[1757491927390,1.78884,112930.0,112910.0,0.17553227]
[1757491927585,1.78884,112930.0,112920.0,0.01364]
[1757491927792,2.75341227,112930.0,112920.0,0.17553227]
[1757491927992,2.75341227,112930.0,112920.0,0.15385227]
[1757491928186,2.75341227,112930.0,112920.0,0.01364]
[1757491928387,1.92905227,112930.0,112920.0,0.15385227]
[1757491928582,2.75321227,112930.0,112920.0,0.15385227]
[1757491929086,2.75321227,112930.0,112910.0,0.0011]
[1757491929087,3.24342454,112930.0,112910.0,0.0011]
[1757491929281,0.96417227,112920.0,112910.0,0.17563227]
[1757491929486,0.96417227,112920.0,112910.0,0.15385227]
[1757491929684,1.10438454,112920.0,112900.0,0.17563227]
[1757491929883,0.96417227,112920.0,112910.0,0.01387296]
[1757491930089,0.82396,112920.0,112910.0,0.01387296]
[1757491930283,1.78884,112930.0,112910.0,0.03532]
[1757491930495,0.82404,112920.0,112910.0,0.03565296]
[1757491930693,1.78884,112930.0,112920.0,0.01364]
[1757491930890,2.61288,112930.0,112920.0,0.01364]
[1757491931096,1.92905227,112930.0,112920.0,0.01364]
[1757491931597,2.75293227,112930.0,112920.0,0.01364]
[1757491931784,1.92905227,112930.0,112920.0,0.01364]
[1757491931989,2.77491425,112930.0,112920.0,0.01364]
[1757491932296,2.77487425,112930.0,112920.0,0.04332]
[1757491932698,1.81090198,112930.0,112920.0,0.04332]
[1757491932996,2.77483425,112930.0,112920.0,0.04332]
[1757491933297,2.77483425,112930.0,112920.0,0.02764]
[1757491933594,2.91504652,112930.0,112920.0,0.014]
[1757491933996,2.09132652,112930.0,112920.0,0.014]
[1757491934198,2.77451425,112930.0,112920.0,0.014]
[1757491934897,2.77455425,112930.0,112920.0,0.014]
[1757491935285,2.77447425,112930.0,112920.0,0.014]
[1757491935490,2.77447425,112930.0,112920.0,0.02683]
[1757491935686,1.95111425,112930.0,112920.0,0.02683]
[1757491935893,2.61204,112930.0,112920.0,0.18863227]
[1757491936096,2.61204,112930.0,112920.0,0.5790775]
[1757491936301,0.0001,112950.0,112940.0,0.03442]
[1757491936499,0.0001,112970.0,112950.0,0.03442]
[1757491936697,0.50185227,112960.0,112950.0,0.17496523]
[1757491937001,0.96401227,112960.0,112950.0,0.17486523]
[1757491937496,1.45422454,112960.0,112950.0,0.00885]
[1757491937707,1.47623928,112960.0,112950.0,0.00885]
[1757491938005,1.37623928,112960.0,112950.0,0.00885]
[1757491938194,1.47623928,112960.0,112950.0,0.00885]
[1757491938503,1.62524872,112960.0,112950.0,0.00885]
[1757491938697,1.62524872,112960.0,112940.0,0.0002]
[1757491938897,0.38042454,112950.0,112940.0,0.0002]
[1757491939203,1.37603928,112950.0,112930.0,0.0002]
[1757491939401,0.96369227,112940.0,112930.0,0.15324227]
[1757491939600,0.96369227,112940.0,112930.0,0.16189227]
[1757491939901,0.96369227,112940.0,112930.0,0.02168]
[1757491940104,0.28042454,112940.0,112930.0,0.00885]
[1757491940303,1.10386454,112940.0,112930.0,0.00885]
[1757491940502,1.12589373,112940.0,112930.0,0.00885]
[1757491940697,1.10386454,112940.0,112930.0,0.00885]
[1757491940898,0.82344,112940.0,112930.0,0.00885]
[1757491941202,1.12590153,112940.0,112930.0,0.00885]
[1757491941398,1.12570153,112940.0,112930.0,0.00885]
[1757491941700,0.16224926,112940.0,112930.0,0.02191296]
[1757491941903,0.16224926,112940.0,112930.0,0.18371523]
[1757491942093,0.007,112940.0,112930.0,0.18371523]
[1757491942298,0.64644,112940.0,112930.0,0.18371523]
[1757491942499,0.78665227,112940.0,112930.0,0.18371523]
[1757491942699,0.80840399,112940.0,112930.0,0.18348227]
[1757491942902,0.94861626,112940.0,112930.0,0.00885]
[1757491943107,0.9486176,112940.0,112930.0,0.00885]
[1757491944306,1.28062722,112940.0,112930.0,0.00885]
[1757491944505,1.28062722,112940.0,112920.0,0.0002]
[1757491944506,1.38062722,112940.0,112900.0,0.01283]
[1757491944696,0.13121708,112920.0,112910.0,0.00023296]
[1757491945006,0.15297014,112920.0,112910.0,0.00023296]
[1757491945207,0.15297014,112920.0,112900.0,0.01283]
[1757491945508,0.02175306,112920.0,112910.0,0.00023296]
[1757491945703,0.97601014,112920.0,112910.0,0.00023296]
[1757491945909,0.97601014,112920.0,112900.0,0.01293]
[1757491946099,0.84479306,112920.0,112910.0,0.00023296]
[1757491946296,0.84979306,112920.0,112910.0,0.00023296]
[1757491946505,0.02675306,112920.0,112900.0,0.01293]
[1757491946706,0.02675306,112920.0,112910.0,0.00023296]
[1757491946907,0.84939306,112920.0,112910.0,0.00023296]
[1757491947208,0.97970687,112920.0,112900.0,0.03452]
[1757491947412,0.98170687,112920.0,112910.0,0.00023296]
[1757491947912,0.98170687,112920.0,112900.0,0.01293]
[1757491948207,0.15906687,112920.0,112910.0,0.00023296]
[1757491948410,0.98170687,112920.0,112910.0,0.00023296]
[1757491948612,0.98170687,112920.0,112900.0,0.01293]
[1757491948613,1.02873818,112920.0,112900.0,0.01293]
[1757491948811,1.02773818,112920.0,112910.0,0.00023296]
[1757491949204,1.02773818,112920.0,112900.0,0.01293]
[1757491949405,0.86919131,112910.0,112900.0,0.03442]
[1757491949608,0.06878437,112910.0,112900.0,0.03442]
[1757491949905,0.84379306,112910.0,112900.0,0.03465296]
[1757491950207,0.89082437,112910.0,112900.0,0.03465296]
[1757491950607,0.06878437,112910.0,112900.0,0.03465296]
[1757491950815,0.86907131,112910.0,112900.0,0.03465296]
[1757491951008,0.89082437,112910.0,112900.0,0.01306296]
[1757491951405,1.02113818,112910.0,112890.0,0.01293]
[1757491951713,0.19321398,112900.0,112880.0,0.04322]
[1757491951914,0.95203381,112890.0,112880.0,0.01283]
[1757491952113,0.97378687,112890.0,112880.0,0.00023296]
[1757491952415,1.49320694,112890.0,112870.0,0.0001]
[1757491952614,1.49320694,112890.0,112860.0,0.0001]
[1757491952615,1.91747381,112880.0,112860.0,0.0001]
[1757491952811,1.0156714,112870.0,112850.0,0.01293]
[1757491953003,0.13031381,112860.0,112840.0,0.01293]
[1757491953205,0.86939085,112850.0,112840.0,0.04312]
[1757491953416,0.89114391,112850.0,112840.0,0.04312]
[1757491953612,0.89118391,112850.0,112840.0,0.04335296]
[1757491954413,1.02149772,112850.0,112840.0,0.0087]
[1757491954714,0.89134391,112850.0,112830.0,0.03452]
[1757491954922,0.06942391,112850.0,112840.0,0.01306296]
[1757491955116,0.89134391,112850.0,112840.0,0.01306296]
[1757491955417,0.89134391,112850.0,112840.0,0.01283]
[1757491955618,0.89334391,112850.0,112840.0,0.01283]
[1757491956114,0.89334391,112850.0,112830.0,0.01293]
[1757491956303,0.15228655,112850.0,112840.0,0.00023296]
[1757491956510,0.97400655,112850.0,112840.0,0.03465296]
[1757491956812,0.97400655,112850.0,112840.0,0.01306296]
[1757491957516,0.9263357,112850.0,112840.0,0.00023296]
[1757491957712,1.05564951,112850.0,112840.0,0.00023296]
[1757491958013,1.10332036,112850.0,112840.0,0.00023296]
[1757491958209,1.10432036,112850.0,112840.0,0.00023296]
[1757491958411,1.10532036,112850.0,112840.0,0.00023296]
[1757491958617,1.10532036,112850.0,112830.0,0.01293]
[1757491958808,0.97500655,112850.0,112840.0,0.00023296]
[1757491959014,1.10632036,112850.0,112840.0,0.00023296]
[1757491959216,1.10632036,112850.0,112830.0,0.0001]
[1757491959416,0.13031381,112840.0,112830.0,0.00023296]
[1757491959616,0.15206687,112840.0,112830.0,0.00023296]
[1757491960021,0.97358687,112840.0,112830.0,0.00023296]
[1757491960423,0.97358687,112840.0,112820.0,0.02163]
[1757491960621,0.02175306,112840.0,112830.0,0.16496677]
[1757491960831,0.84311306,112840.0,112830.0,0.41496677]
[1757491961620,1.22442687,112840.0,112820.0,0.0088]
[1757491961818,1.91807381,112830.0,112820.0,0.0087]
[1757491962018,1.93982687,112830.0,112810.0,0.0001]
[1757491962225,0.82172,112820.0,112810.0,0.03528]
[1757491962425,0.02175306,112820.0,112810.0,0.16559381]
[1757491962718,0.04967085,112840.0,112810.0,0.16559381]
[1757491962719,0.001,112840.0,112830.0,0.03528]
[1757491962924,0.84452483,112840.0,112830.0,0.16559381]
[1757491963126,0.84452483,112840.0,112830.0,0.03541296]
[1757491963424,0.02288483,112840.0,112830.0,0.01403296]
[1757491963627,0.84516483,112840.0,112830.0,0.03541296]